[Event "15th Vandoeuvre Open 2019"]
[Site "Vandoeuvre-les-Nancy"]
[Date "2019.01.05"]
[Round "7"]
[White "Burri, Quentin"]
[Black "Xu, Xiangyu"]
[Result "0-1"]
[ECO "B77"]
[WhiteElo "2409"]
[BlackElo "2567"]
[Annotator "ChessBase"]
[PlyCount "69"]
[EventDate "2019.01.02"]
[EventType "swiss"]
[EventCountry "FRA"]
[SourceTitle "playchess.com"]
[Source "ChessBase"]
[SourceQuality "1"]
[TimeControl "5400+30"]

1. e4 {[%emt 0:00:00]} c5 {[%emt 0:00:00]} 2. Nf3 {[%emt 0:00:00]} Nc6 {[%emt 0:00:00]} 3. Nc3 {[%emt 0:02:03]} g6 {[%emt 0:00:00]} 4. d4 {[%emt 0:00:28]} cxd4 {[%emt 0:00:00]} 5. Nxd4 {[%emt 0:00:05]} Bg7 {[%emt 0:00:03]} 6. Be3 {[%emt 0:00:04]} Nf6 {[%emt 0:00:06]} 7. Bc4 {[%emt 0:00:31]} O-O {[%emt 0:00:08]} 8. Bb3 {[%emt 0:00:03]} d6 {[%emt 0:00:05]} 9. f3 {[%emt 0:01:18]} Bd7 {[%emt 0:00:05]} 10. Qd2 {[%emt 0:00:12]} Na5 {[%emt 0:00:05]} 11. h4 {[%emt 0:09:14]} Nxb3 {[%emt 0:00:17]} 12. Nxb3 {[%emt 0:02:28]} h5 {[%emt 0:00:21]} 13. O-O-O {[%emt 0:02:05]} a5 {[%emt 0:09:57]} 14. Nd4 {[%emt 0:06:36]} a4 {[%emt 0:09:01]} 15. a3 {[%emt 0:04:07]} Ra5 {[%emt 0:06:07]} 16. Na2 {[%emt 0:12:14]} e5 {[%emt 0:05:46]} 17. Ne2 {[%emt 0:00:59]} d5 {[%emt 0:00:04]} 18. Bg5 {[%emt 0:00:59]} Qb6 {[%emt 0:25:57]} 19. Nb4 {[%emt 0:08:41]} d4 {[%emt 0:00:35]} 20. Kb1 {[%emt 0:09:34]} Be6 {[%emt 0:03:47]} 21. g4 {[%emt 0:02:11]} hxg4 {[%emt 0:00:31]} 22. h5 {[%emt 0:00:58]} Nxh5 {[%emt 0:04:09]} 23. Rdg1 {[%emt 0:02:30]} gxf3 {[%emt 0:01:29]} 24. Ng3 {[%emt 0:01:29]} Bg4 {[%emt 0:08:17]} 25. Nf5 {[%emt 0:04:41]} gxf5 {[%emt 0:02:13]} 26. exf5 {[%emt 0:00:16]} Bxf5 {[%emt 0:00:28]} 27. Bh6 {[%emt 0:00:34]} Bg6 {[%emt 0:09:15]} 28. Rxh5 {[%emt 0:03:52]} e4 {[%emt 0:08:40]} 29. Rxa5 {[%emt 0:01:24]} e3 {[%emt 0:00:06]} 30. Qh2 {[%emt 0:02:45]} Qxa5 {[%emt 0:00:12]} 31. Bxg7 {[%emt 0:00:25]} Kxg7 {[%emt 0:00:29]} 32. Rh1 {[%emt 0:00:07]} Qh5 {[%emt 0:00:15]} 33. Qxh5 {[%emt 0:00:15]} Bxh5 {[%emt 0:00:03]} 34. Rxh5 {[%emt 0:00:05]} f2 {[%emt 0:00:13]} 35. Kc1 {[%emt 0:24:17]} 0-1

[Event "15th Vandoeuvre Open 2019"]
[Site "Vandoeuvre-les-Nancy"]
[Date "2019.01.05"]
[Round "7"]
[White "Steininger, Denis"]
[Black "Leccia, Antoine"]
[Result "0-1"]
[ECO "C10"]
[WhiteElo "1947"]
[BlackElo "1696"]
[Annotator "NA"]
[PlyCount "36"]
[EventDate "2019.01.02"]
[EventType "swiss"]
[EventCountry "FRA"]
[SourceTitle "playchess.com"]
[Source "ChessBase"]
[SourceQuality "1"]
[TimeControl "5400+30"]

1. e4 {[%emt 0:00:00]} e6 {[%emt 0:00:35]} 2. d4 {[%emt 0:00:00]} d5 {[%emt 0:00:57]} 3. Nc3 {[%emt 0:00:00]} dxe4 {[%emt 0:01:28]} 4. Nxe4 {[%emt 0:00:00]} Nd7 {[%emt 0:01:01]} 5. Nf3 {[%emt 0:00:04]} Ngf6 {[%emt 0:01:48]} 6. Ng3 {[%emt 0:00:02]} c5 {[%emt 0:01:28]} 7. c3 {[%emt 0:00:07]} Be7 {[%emt 0:01:47]} 8. Bd3 {[%emt 0:00:12]} h6 {[%emt 0:01:55]} 9. Bc2 {[%emt 0:00:18]} b6 {[%emt 0:03:27]} 10. O-O {[%emt 0:00:19]} Bb7 {[%emt 0:01:15]} 11. Re1 {[%emt 0:00:29]} Qc7 {[%emt 0:01:37]} 12. Nf5 {[%emt 0:02:02]} exf5 {[%emt 0:11:52]} 13. Qe2 {[%emt 0:00:07]} O-O-O {[%emt 0:00:19]} 14. Qxe7 {[%emt 0:01:20]} Bxf3 {[%emt 0:00:13]} 15. Qxf7 {[%emt 0:00:07]} Bd5 {[%emt 0:00:31]} 16. Qxg7 {[%emt 0:01:43]} Rdg8 {[%emt 0:01:03]} 17. Bf4 $19 {[%emt 0:00:40]} Qxf4 {[%emt 0:00:48]} 18. Qe7 {[%emt 0:00:04]} Rxg2+ {[%emt 0:00:04]} 0-1

[Event "15th Vandoeuvre Open 2019"]
[Site "Vandoeuvre-les-Nancy"]
[Date "2019.01.05"]
[Round "7"]
[White "Leriche, Ines"]
[Black "Budak, Rezan"]
[Result "0-1"]
[ECO "A53"]
[WhiteElo "1917"]
[BlackElo "1883"]
[Annotator "NA"]
[PlyCount "94"]
[EventDate "2019.01.02"]
[EventType "swiss"]
[EventCountry "FRA"]
[SourceTitle "playchess.com"]
[Source "ChessBase"]
[SourceQuality "1"]
[TimeControl "5400+30"]

1. d4 {[%emt 0:07:15]} Nf6 {[%emt 0:00:36]} 2. c4 {[%emt 0:00:16]} d6 {[%emt 0:03:37]} 3. Nc3 {[%emt 0:00:44]} Bf5 {[%emt 1:27:17]} 4. Nf3 {[%emt 1:23:45]} h6 {[%emt 0:00:30]} 5. g3 {[%emt 0:00:00]} c6 {[%emt 0:00:30]} 6. Bg2 {[%emt 0:01:00]} Nbd7 {[%emt 0:00:30]} 7. O-O {[%emt 0:00:30]} e5 {[%emt 0:00:30]} 8. d5 {[%emt 0:00:30]} e4 {[%emt 0:00:30]} 9. Nd2 {[%emt 0:00:30]} cxd5 {[%emt 0:00:30]} 10. cxd5 {[%emt 0:00:30]} Qe7 {[%emt 0:00:30]} 11. Qa4 {[%emt 0:00:30]} a6 {[%emt 0:00:30]} 12. Ndxe4 {[%emt 0:00:30]} Nxe4 {[%emt 0:00:30]} 13. Bxe4 {[%emt 0:00:30]} Bxe4 {[%emt 0:00:30]} 14. Nxe4 {[%emt 0:00:00]} b5 {[%emt 0:00:30]} 15. Qc2 {[%emt 0:01:00]} f5 {[%emt 0:00:30]} 16. Nc3 {[%emt 0:00:30]} g6 {[%emt 0:00:30]} 17. Re1 {[%emt 0:00:30]} b4 {[%emt 0:00:30]} 18. Na4 {[%emt 0:00:30]} Bg7 {[%emt 0:00:30]} 19. Bd2 {[%emt 0:00:30]} a5 {[%emt 0:00:30]} 20. e4 {[%emt 0:00:30]} f4 {[%emt 0:00:30]} 21. Bxf4 {[%emt 0:00:00]} O-O {[%emt 0:00:30]} 22. Rac1 {[%emt 0:01:00]} Rac8 {[%emt 0:00:00]} 23. Qe2 g5 {[%emt 0:01:00]} 24. Bd2 {[%emt 0:01:00]} Ne5 {[%emt 0:00:30]} 25. Rxc8 {[%emt 0:00:00]} Rxc8 {[%emt 0:00:30]} 26. Rc1 {[%emt 0:00:00]} Rf8 27. f4 {[%emt 0:01:30]} gxf4 {[%emt 0:01:00]} 28. Bxf4 {[%emt 0:00:00]} Ng6 {[%emt 0:00:30]} 29. Rf1 {[%emt 0:01:00]} Bd4+ {[%emt 0:00:30]} 30. Kh1 {[%emt 0:00:30]} Re8 {[%emt 0:00:30]} 31. Re1 {[%emt 0:00:30]} Qd7 {[%emt 0:00:30]} 32. b3 {[%emt 0:00:00]} Rf8 {[%emt 0:00:00]} 33. Be3 Bxe3 {[%emt 0:01:00]} 34. Qxe3 {[%emt 0:00:20]} Qf7 {[%emt 0:00:30]} 35. Kg2 {[%emt 0:01:40]} Ne5 {[%emt 0:00:30]} 36. Nb2 {[%emt 0:00:00]} Ng4 {[%emt 0:00:30]} 37. Qd2 {[%emt 0:01:00]} Qf2+ {[%emt 0:00:30]} 38. Qxf2 {[%emt 0:00:00]} Rxf2+ {[%emt 0:00:00]} 39. Kh3 {[%emt 0:01:00]} h5 {[%emt 0:00:00]} 40. Kh4 {[%emt 0:00:00]} Rxh2+ {[%emt 0:00:00]} 41. Kg5 {[%emt 0:00:00]} Rxb2 {[%emt 0:00:00]} 42. Kxh5 {[%emt 0:00:15]} Ne5 {[%emt 0:00:00]} 43. Ra1 {[%emt 0:01:14]} Rg2 {[%emt 0:00:00]} 44. a3 {[%emt 0:00:30]} Rxg3 {[%emt 0:00:00]} 45. axb4 {[%emt 0:00:09]} axb4 {[%emt 0:00:00]} 46. Ra6 {[%emt 0:00:44]} Rxb3 {[%emt 0:00:00]} 47. Rxd6 {[%emt 0:00:09]} Rh3+ {[%emt 0:00:00]} 0-1

[Event "15th Vandoeuvre Open 2019"]
[Site "Vandoeuvre-les-Nancy"]
[Date "2019.01.05"]
[Round "7"]
[White "Paternoster, Thibaud"]
[Black "Winkin, Pol"]
[Result "1-0"]
[ECO "C30"]
[WhiteElo "1879"]
[BlackElo "1694"]
[Annotator "NA"]
[PlyCount "41"]
[EventDate "2019.01.02"]
[EventType "swiss"]
[EventCountry "FRA"]
[SourceTitle "playchess.com"]
[Source "ChessBase"]
[SourceQuality "1"]
[TimeControl "5400+30"]

1. e4 {[%emt 0:01:56]} e5 {[%emt 0:00:00]} 2. Nc3 {[%emt 0:00:07]} Nc6 {[%emt 0:00:04]} 3. f4 {[%emt 0:00:45]} d6 {[%emt 0:07:11]} 4. Nf3 {[%emt 0:01:32]} Nf6 {[%emt 0:03:11]} 5. Bb5 {[%emt 0:01:44]} Bd7 {[%emt 0:03:41]} 6. d3 {[%emt 0:02:02]} exf4 {[%emt 0:03:06]} 7. Bxf4 {[%emt 0:01:09]} Ne5 {[%emt 0:03:36]} 8. Nxe5 {[%emt 0:35:44]} dxe5 {[%emt 0:00:39]} 9. Bxe5 {[%emt 0:01:27]} c6 {[%emt 0:10:15]} 10. Bc4 {[%emt 0:02:04]} Ng4 {[%emt 0:05:39]} 11. Bg3 {[%emt 0:07:23]} Ne3 {[%emt 0:22:29]} 12. Bxf7+ {[%emt 0:05:34]} Kxf7 {[%emt 0:01:21]} 13. Qf3+ {[%emt 0:00:08]} Nf5 {[%emt 0:00:33]} 14. exf5 {[%emt 0:00:35]} Qe7+ {[%emt 0:00:48]} 15. Ne4 {[%emt 0:08:39]} Qb4+ {[%emt 0:03:11]} 16. c3 {[%emt 0:00:30]} Qxb2 {[%emt 0:00:05]} 17. O-O {[%emt 0:00:11]} Qb6+ {[%emt 0:00:49]} 18. Bf2 {[%emt 0:00:42]} Qc7 {[%emt 0:01:19]} 19. f6 {[%emt 0:00:41]} Qe5 {[%emt 0:02:35]} 20. fxg7+ {[%emt 0:00:28]} Kxg7 {[%emt 0:01:47]} 21. Bd4 {[%emt 0:00:06]} 1-0

[Event "15th Vandoeuvre Open 2019"]
[Site "Vandoeuvre-les-Nancy"]
[Date "2019.01.05"]
[Round "7"]
[White "Fretel, Liza"]
[Black "Godde, Matthias"]
[Result "0-1"]
[ECO "B26"]
[WhiteElo "1855"]
[BlackElo "1881"]
[Annotator "NA"]
[PlyCount "74"]
[EventDate "2019.01.02"]
[EventType "swiss"]
[EventCountry "FRA"]
[SourceTitle "playchess.com"]
[Source "ChessBase"]
[SourceQuality "1"]
[TimeControl "5400+30"]

1. e4 {[%emt 0:00:00]} c5 {[%emt 0:00:13]} 2. Nc3 {[%emt 0:00:00]} Nc6 {[%emt 0:00:44]} 3. g3 {[%emt 0:00:00]} g6 {[%emt 0:01:21]} 4. Bg2 {[%emt 0:00:00]} Bg7 {[%emt 0:00:30]} 5. d3 {[%emt 0:00:00]} d6 {[%emt 0:00:40]} 6. Be3 {[%emt 0:00:09]} e6 {[%emt 0:01:04]} 7. Qd2 {[%emt 0:00:15]} Nd4 {[%emt 0:01:37]} 8. Nd1 {[%emt 0:00:06]} e5 {[%emt 0:11:26]} 9. c3 {[%emt 0:01:25]} Ne6 {[%emt 0:00:49]} 10. Ne2 {[%emt 0:02:12]} Ne7 {[%emt 0:05:50]} 11. Bh6 {[%emt 0:02:29]} Bxh6 {[%emt 0:09:26]} 12. Qxh6 {[%emt 0:00:05]} f5 {[%emt 0:00:53]} 13. Qh4 {[%emt 0:05:02]} O-O {[%emt 0:14:38]} 14. exf5 {[%emt 0:01:22]} g5 {[%emt 0:03:45]} 15. Qc4 {[%emt 0:02:09]} Nxf5 {[%emt 0:06:21]} 16. Bxb7 {[%emt 0:07:21]} Bxb7 {[%emt 0:00:01]} 17. Qxe6+ {[%emt 0:00:09]} Kh8 {[%emt 0:00:22]} 18. O-O {[%emt 0:00:14]} Bf3 {[%emt 0:13:52]} 19. Re1 {[%emt 0:03:02]} Rf6 {[%emt 0:03:41]} 20. Qc4 {[%emt 0:00:57]} g4 {[%emt 0:03:32]} 21. Ne3 {[%emt 0:15:04]} Nxe3 {[%emt 0:00:31]} 22. fxe3 {[%emt 0:00:05]} Rh6 {[%emt 0:00:52]} 23. d4 {[%emt 0:11:43]} Qg5 {[%emt 0:00:49]} 24. Nf4 {[%emt 0:16:22]} exf4 {[%emt 0:01:03]} 25. exf4 {[%emt 0:00:04]} Qf5 {[%emt 0:00:27]} 26. dxc5 {[%emt 0:02:47]} Rxh2 {[%emt 0:09:22]} 27. Re7 {[%emt 0:03:10]} Rg2+ {[%emt 0:04:14]} 28. Kf1 {[%emt 0:00:08]} Qxc5 {[%emt 0:04:46]} 29. Rxh7+ {[%emt 0:00:24]} Kxh7 {[%emt 0:00:01]} 30. Qf7+ {[%emt 0:00:08]} Kh8 {[%emt 0:00:10]} 31. Qf6+ {[%emt 0:00:34]} Kg8 {[%emt 0:00:14]} 32. Qg6+ {[%emt 0:02:56]} Kf8 {[%emt 0:00:13]} 33. Qf6+ {[%emt 0:01:48]} Ke8 {[%emt 0:00:56]} 34. Re1+ {[%emt 0:00:30]} Kd7 {[%emt 0:00:27]} 35. Qe6+ {[%emt 0:00:53]} Kc6 {[%emt 0:00:13]} 36. Re3 {[%emt 0:01:43]} Rh8 {[%emt 0:00:30]} 37. Rxf3 {[%emt 0:00:45]} Qg1# {[%emt 0:02:57]} 0-1

[Event "15th Vandoeuvre Open 2019"]
[Site "Vandoeuvre-les-Nancy"]
[Date "2019.01.05"]
[Round "8"]
[White "Li, Di"]
[Black "Maurizzi, Marc Andria"]
[Result "1-0"]
[ECO "A40"]
[WhiteElo "2488"]
[BlackElo "2028"]
[Annotator "ChessBase"]
[PlyCount "83"]
[EventDate "2019.01.02"]
[EventType "swiss"]
[EventCountry "FRA"]
[SourceTitle "playchess.com"]
[Source "ChessBase"]
[SourceQuality "1"]
[TimeControl "5400+30"]

1. d4 {[%emt 0:06:07]} e6 {[%emt 0:00:00]} 2. c4 {[%emt 0:00:29]} b6 {[%emt 0:00:00]} 3. a3 {[%emt 0:02:13]} Bb7 {[%emt 0:01:10]} 4. Nc3 {[%emt 0:00:21]} f5 {[%emt 0:02:04]} 5. d5 {[%emt 0:01:46]} Be7 {[%emt 0:00:57]} 6. g3 {[%emt 0:06:02]} Nf6 {[%emt 0:05:03]} 7. Bg2 {[%emt 0:00:07]} O-O {[%emt 0:00:40]} 8. Nh3 {[%emt 0:01:32]} Na6 {[%emt 0:08:45]} 9. b4 {[%emt 0:03:31]} c5 {[%emt 0:01:20]} 10. b5 {[%emt 0:34:12]} Nc7 {[%emt 0:00:34]} 11. O-O {[%emt 0:00:08]} d6 {[%emt 0:02:26]} 12. a4 {[%emt 0:04:02]} e5 {[%emt 0:11:18]} 13. Qc2 {[%emt 0:03:28]} a5 {[%emt 0:03:41]} 14. bxa6 {[%emt 0:04:34]} Bxa6 {[%emt 0:01:03]} 15. Qb3 {[%emt 0:00:14]} e4 {[%emt 0:01:35]} 16. f3 {[%emt 0:05:01]} exf3 {[%emt 0:01:50]} 17. exf3 {[%emt 0:01:09]} Nd7 {[%emt 0:01:27]} 18. f4 {[%emt 0:04:02]} Bf6 {[%emt 0:01:13]} 19. Ra2 {[%emt 0:00:05]} Re8 {[%emt 0:01:09]} 20. Ne2 {[%emt 0:00:22]} Re7 {[%emt 0:01:52]} 21. Nf2 {[%emt 0:00:25]} Qf8 {[%emt 0:01:12]} 22. g4 {[%emt 0:01:02]} fxg4 {[%emt 0:01:36]} 23. Nxg4 {[%emt 0:00:37]} Rae8 {[%emt 0:00:22]} 24. Qd3 {[%emt 0:00:30]} Qf7 {[%emt 0:04:47]} 25. h3 {[%emt 0:05:55]} h5 {[%emt 0:09:35]} 26. Nh2 {[%emt 0:01:44]} g6 {[%emt 0:00:58]} 27. Rc2 {[%emt 0:00:52]} Kg7 {[%emt 0:01:06]} 28. Kh1 {[%emt 0:03:20]} Bc8 {[%emt 0:07:50]} 29. Ng3 {[%emt 0:00:14]} Re1 {[%emt 0:01:12]} 30. Ne4 {[%emt 0:00:22]} Rxf1+ {[%emt 0:00:07]} 31. Nxf1 {[%emt 0:00:30]} Qe7 {[%emt 0:01:01]} 32. Bf3 {[%emt 0:01:45]} Bd4 {[%emt 0:02:06]} 33. Rg2 {[%emt 0:00:31]} Nf8 {[%emt 0:03:34]} 34. Be3 {[%emt 0:00:41]} Bxe3 {[%emt 0:02:19]} 35. Nxe3 {[%emt 0:00:08]} Bxh3 {[%emt 0:00:39]} 36. Qc3+ {[%emt 0:00:40]} Kh6 {[%emt 0:00:05]} 37. Rh2 {[%emt 0:01:50]} Qh4 {[%emt 0:01:07]} 38. Nxd6 {[%emt 0:03:35]} Qxf4 {[%emt 0:00:33]} 39. Rxh3 {[%emt 0:02:42]} Rxe3 {[%emt 0:00:09]} 40. Nf7+ {[%emt 0:00:13]} Qxf7 {[%emt 0:00:03]} 41. Qxe3+ {[%emt 0:00:04]} g5 {[%emt 0:00:11]} 42. Rxh5+ {[%emt 0:00:27]} 1-0

[Event "15th Vandoeuvre Open 2019"]
[Site "Vandoeuvre-les-Nancy"]
[Date "2019.01.05"]
[Round "8"]
[White "Rauta, Nicolas"]
[Black "Fretel, Liza"]
[Result "1-0"]
[ECO "A36"]
[WhiteElo "1904"]
[BlackElo "1855"]
[Annotator "NA"]
[PlyCount "109"]
[EventDate "2019.01.02"]
[EventType "swiss"]
[EventCountry "FRA"]
[SourceTitle "playchess.com"]
[Source "ChessBase"]
[SourceQuality "1"]
[TimeControl "5400+30"]

1. c4 {[%emt 0:01:47]} c5 {[%emt 0:00:00]} 2. Nc3 {[%emt 0:00:10]} Nc6 {[%emt 0:00:00]} 3. g3 {[%emt 0:00:03]} g6 {[%emt 0:00:05]} 4. Bg2 {[%emt 0:00:04]} Bg7 {[%emt 0:00:06]} 5. d3 {[%emt 0:00:19]} a6 {[%emt 0:00:40]} 6. e4 {[%emt 0:01:56]} Rb8 {[%emt 0:00:55]} 7. Be3 {[%emt 0:02:16]} d6 {[%emt 0:00:14]} 8. Nge2 {[%emt 0:04:29]} Nd4 {[%emt 0:02:27]} 9. O-O {[%emt 0:05:05]} b5 {[%emt 0:03:16]} 10. cxb5 {[%emt 0:05:38]} Nxe2+ {[%emt 0:01:06]} 11. Qxe2 {[%emt 0:00:37]} axb5 {[%emt 0:00:19]} 12. f4 {[%emt 0:03:05]} b4 {[%emt 0:01:20]} 13. Nd1 {[%emt 0:02:15]} Qa5 {[%emt 0:08:53]} 14. Nf2 {[%emt 0:08:51]} Bb7 {[%emt 0:06:18]} 15. Rfe1 {[%emt 0:03:52]} e6 {[%emt 0:01:06]} 16. Qd2 {[%emt 0:02:52]} Ne7 {[%emt 0:03:05]} 17. Rec1 {[%emt 0:13:19]} O-O {[%emt 0:04:49]} 18. d4 {[%emt 0:05:31]} Rfc8 {[%emt 0:04:20]} 19. dxc5 {[%emt 0:00:39]} dxc5 {[%emt 0:02:10]} 20. Qd6 {[%emt 0:09:31]} Qc7 {[%emt 0:06:27]} 21. Qxc7 {[%emt 0:00:48]} Rxc7 {[%emt 0:00:07]} 22. Rxc5 {[%emt 0:00:09]} Rbc8 {[%emt 0:01:06]} 23. Rac1 {[%emt 0:01:29]} Rxc5 {[%emt 0:01:13]} 24. Rxc5 {[%emt 0:00:43]} Bxb2 {[%emt 0:00:50]} 25. Rxc8+ {[%emt 0:05:17]} Bxc8 {[%emt 0:00:06]} 26. Bc5 {[%emt 0:00:07]} Nc6 {[%emt 0:00:16]} 27. e5 {[%emt 0:01:49]} Bd4 {[%emt 0:00:22]} 28. Bxd4 {[%emt 0:02:30]} Nxd4 {[%emt 0:00:04]} 29. Nd3 {[%emt 0:00:12]} Nc2 {[%emt 0:07:59]} 30. Nc5 {[%emt 0:00:39]} Kf8 {[%emt 0:01:36]} 31. Kf2 {[%emt 0:00:09]} Ke7 {[%emt 0:02:07]} 32. Be4 {[%emt 0:00:48]} Nd4 {[%emt 0:00:52]} 33. Ke3 {[%emt 0:00:44]} Nb5 {[%emt 0:00:18]} 34. Nd3 {[%emt 0:01:19]} f6 {[%emt 0:06:24]} 35. Nxb4 {[%emt 0:04:14]} fxe5 {[%emt 0:01:54]} 36. Nc6+ {[%emt 0:00:14]} Kd6 {[%emt 0:00:23]} 37. Nxe5 {[%emt 0:00:09]} Nc3 {[%emt 0:01:05]} 38. a3 {[%emt 0:00:55]} Ba6 {[%emt 0:05:28]} 39. Bd3 {[%emt 0:08:07]} Bb7 {[%emt 0:02:30]} 40. Kd4 {[%emt 0:00:23]} Na4 {[%emt 0:02:53]} 41. Bb5 {[%emt 0:00:43]} Nb6 {[%emt 0:00:41]} 42. Nc4+ {[%emt 0:00:21]} Nxc4 {[%emt 0:00:40]} 43. Bxc4 {[%emt 0:00:08]} Bc6 {[%emt 0:00:12]} 44. Bb3 {[%emt 0:00:09]} h6 {[%emt 0:00:46]} 45. h4 {[%emt 0:00:27]} g5 {[%emt 0:05:57]} 46. hxg5 {[%emt 0:00:35]} hxg5 {[%emt 0:00:05]} 47. fxg5 {[%emt 0:00:50]} e5+ {[%emt 0:00:20]} 48. Ke3 {[%emt 0:00:15]} Ke7 {[%emt 0:00:18]} 49. a4 {[%emt 0:00:21]} Kf8 {[%emt 0:00:18]} 50. a5 {[%emt 0:00:41]} Bb7 {[%emt 0:00:14]} 51. Bc4 {[%emt 0:00:20]} Kg7 {[%emt 0:01:40]} 52. a6 {[%emt 0:00:25]} Bxa6 {[%emt 0:00:54]} 53. Bxa6 {[%emt 0:00:04]} Kg6 {[%emt 0:00:03]} 54. Ke4 {[%emt 0:00:43]} Kxg5 {[%emt 0:00:07]} 55. Bc8 {[%emt 0:00:13]} 1-0

[Event "15th Vandoeuvre Open 2019"]
[Site "Vandoeuvre-les-Nancy"]
[Date "2019.01.05"]
[Round "8"]
[White "Budak, Rezan"]
[Black "Paternoster, Thibaud"]
[Result "0-1"]
[ECO "B14"]
[WhiteElo "1883"]
[BlackElo "1879"]
[Annotator "NA"]
[PlyCount "64"]
[EventDate "2019.01.02"]
[EventType "swiss"]
[EventCountry "FRA"]
[SourceTitle "playchess.com"]
[Source "ChessBase"]
[SourceQuality "1"]
[TimeControl "5400+30"]

1. d4 {[%emt 0:06:53]} Nf6 {[%emt 0:00:00]} 2. c4 {[%emt 0:00:24]} e6 {[%emt 0:00:00]} 3. Nf3 {[%emt 0:00:16]} c5 {[%emt 0:00:00]} 4. e3 {[%emt 0:00:13]} cxd4 {[%emt 0:00:20]} 5. exd4 {[%emt 0:00:44]} d5 {[%emt 0:00:16]} 6. Nc3 {[%emt 0:01:52]} Be7 {[%emt 0:01:57]} 7. Bf4 {[%emt 0:01:32]} O-O {[%emt 0:08:41]} 8. Rc1 {[%emt 0:01:38]} dxc4 {[%emt 0:04:05]} 9. Bxc4 {[%emt 0:00:23]} a6 {[%emt 0:03:14]} 10. a4 {[%emt 0:04:49]} Nbd7 {[%emt 0:03:41]} 11. O-O {[%emt 0:02:30]} Nb6 {[%emt 0:01:08]} 12. Bd3 {[%emt 0:01:14]} Nbd5 {[%emt 0:01:58]} 13. Be5 {[%emt 0:01:46]} Bd7 {[%emt 0:20:50]} 14. Re1 {[%emt 0:12:48]} Bc6 {[%emt 0:03:44]} 15. Bb1 {[%emt 0:00:51]} Rc8 {[%emt 0:05:08]} 16. Nxd5 {[%emt 0:06:50]} Bxd5 {[%emt 0:03:34]} 17. Rxc8 {[%emt 0:00:17]} Qxc8 {[%emt 0:00:05]} 18. Qd3 {[%emt 0:00:08]} Qc4 {[%emt 0:09:49]} 19. Qd1 {[%emt 0:11:20]} Rc8 {[%emt 0:08:09]} 20. Ng5 {[%emt 0:10:48]} h6 {[%emt 0:02:38]} 21. Bxf6 {[%emt 0:16:07]} Bxf6 {[%emt 0:00:59]} 22. Ne4 {[%emt 0:00:08]} Qxd4 {[%emt 0:02:29]} 23. Nxf6+ {[%emt 0:00:11]} Qxf6 {[%emt 0:00:04]} 24. Qd3 {[%emt 0:00:12]} g6 {[%emt 0:00:28]} 25. Qe2 {[%emt 0:01:03]} Qg5 {[%emt 0:00:49]} 26. f3 {[%emt 0:03:40]} Rc1 {[%emt 0:04:13]} 27. Bd3 {[%emt 0:00:30]} Rxe1+ {[%emt 0:00:21]} 28. Qxe1 {[%emt 0:01:09]} Bxf3 {[%emt 0:00:21]} 29. Bf1 {[%emt 0:00:05]} Bc6 {[%emt 0:00:53]} 30. a5 {[%emt 0:00:27]} Qc5+ {[%emt 0:00:39]} 31. Kh1 {[%emt 0:00:23]} Kg7 {[%emt 0:00:20]} 32. Qb1 {[%emt 0:01:19]} Qxa5 {[%emt 0:00:28]} 0-1

[Event "15th Vandoeuvre Open 2019"]
[Site "Vandoeuvre-les-Nancy"]
[Date "2019.01.05"]
[Round "8"]
[White "Battistella, Valentin"]
[Black "Bellahcene, Anissa"]
[Result "1-0"]
[ECO "D02"]
[WhiteElo "1882"]
[BlackElo "1819"]
[Annotator "NA"]
[PlyCount "76"]
[EventDate "2019.01.02"]
[EventType "swiss"]
[EventCountry "FRA"]
[SourceTitle "playchess.com"]
[Source "ChessBase"]
[SourceQuality "1"]
[TimeControl "5400+30"]

1. d4 {[%emt 0:00:00]} d5 {[%emt 0:05:03]} 2. Bf4 {[%emt 0:00:00]} c6 {[%emt 0:00:32]} 3. Nf3 {[%emt 0:01:15]} e6 {[%emt 0:00:06]} 4. e3 {[%emt 0:00:13]} f5 {[%emt 0:01:01]} 5. Nbd2 {[%emt 0:04:11]} Nf6 {[%emt 0:00:20]} 6. Ne5 {[%emt 0:00:16]} Nbd7 {[%emt 0:00:32]} 7. Be2 {[%emt 0:02:01]} Be7 {[%emt 0:00:17]} 8. O-O {[%emt 0:02:39]} O-O {[%emt 0:00:15]} 9. c4 {[%emt 0:01:20]} Ne4 {[%emt 0:01:43]} 10. f3 {[%emt 0:00:23]} Nxd2 {[%emt 0:07:02]} 11. Qxd2 {[%emt 0:00:39]} g5 {[%emt 0:00:25]} 12. Nxd7 {[%emt 0:00:47]} Bxd7 {[%emt 0:00:54]} 13. Be5 {[%emt 0:00:47]} Be8 {[%emt 0:06:45]} 14. e4 {[%emt 0:27:51]} dxe4 {[%emt 0:06:31]} 15. fxe4 {[%emt 0:00:39]} Bf6 {[%emt 0:00:45]} 16. Bxf6 {[%emt 0:00:37]} Qxf6 {[%emt 0:00:05]} 17. d5 {[%emt 0:05:04]} Rd8 {[%emt 0:01:19]} 18. Rad1 {[%emt 0:02:37]} h6 {[%emt 0:05:41]} 19. Qa5 {[%emt 0:19:42]} Rd7 {[%emt 0:12:43]} 20. Kh1 {[%emt 0:07:35]} Qe5 {[%emt 0:05:11]} 21. Rde1 {[%emt 0:06:56]} b6 {[%emt 0:11:04]} 22. Qa3 {[%emt 0:02:40]} Qd6 {[%emt 0:03:55]} 23. Qh3 {[%emt 0:05:10]} exd5 {[%emt 0:02:23]} 24. cxd5 {[%emt 0:02:51]} cxd5 {[%emt 0:01:15]} 25. exf5 {[%emt 0:02:22]} Re7 {[%emt 0:03:21]} 26. Qd3 {[%emt 0:01:14]} Qe5 {[%emt 0:01:57]} 27. h3 {[%emt 0:01:45]} Bf7 {[%emt 0:01:02]} 28. Bf3 {[%emt 0:00:55]} Qxe1 {[%emt 0:01:23]} 29. Rxe1 {[%emt 0:00:02]} Rxe1+ {[%emt 0:00:06]} 30. Kh2 {[%emt 0:00:03]} Re5 {[%emt 0:00:32]} 31. Bd1 {[%emt 0:00:51]} Rd8 {[%emt 0:01:56]} 32. Bc2 {[%emt 0:00:16]} Rd6 {[%emt 0:02:32]} 33. Qg3 {[%emt 0:00:53]} Re2 {[%emt 0:00:54]} 34. Qxd6 {[%emt 0:00:18]} Rxc2 {[%emt 0:00:02]} 35. Qb8+ {[%emt 0:01:26]} Kg7 {[%emt 0:00:32]} 36. Qe5+ {[%emt 0:00:08]} Kg8 {[%emt 0:00:35]} 37. Qf6 {[%emt 0:00:11]} Rd2 {[%emt 0:02:17]} 38. Qxh6 {[%emt 0:00:15]} d4 {[%emt 0:16:04]} 1-0

[Event "15th Vandoeuvre Open 2019"]
[Site "Vandoeuvre-les-Nancy"]
[Date "2019.01.05"]
[Round "8"]
[White "Leccia, Antoine"]
[Black "Godde, Matthias"]
[Result "1/2-1/2"]
[ECO "B07"]
[WhiteElo "1696"]
[BlackElo "1881"]
[Annotator "NA"]
[PlyCount "40"]
[EventDate "2019.01.02"]
[EventType "swiss"]
[EventCountry "FRA"]
[SourceTitle "playchess.com"]
[Source "ChessBase"]
[SourceQuality "1"]
[TimeControl "5400+30"]

1. d4 {[%emt 0:00:33]} Nf6 {[%emt 0:00:00]} 2. Nf3 {[%emt 0:00:46]} g6 {[%emt 0:00:00]} 3. g3 {[%emt 0:01:06]} Bg7 {[%emt 1:31:30]} 4. Bg2 {[%emt 0:01:30]} O-O {[%emt 0:00:00]} 5. O-O {[%emt 0:01:04]} d6 {[%emt 0:00:00]} 6. a4 {[%emt 1:28:01]} Nbd7 {[%emt 0:00:00]} 7. Nc3 {[%emt 0:00:30]} c6 {[%emt 0:00:00]} 8. Re1 {[%emt 0:00:00]} Qc7 {[%emt 0:00:00]} 9. e4 {[%emt 0:00:00]} e5 {[%emt 0:00:00]} 10. h3 {[%emt 0:00:00]} Re8 {[%emt 0:00:00]} 11. Be3 {[%emt 0:00:00]} h6 {[%emt 0:00:00]} 12. Qd2 {[%emt 0:00:00]} Kh7 {[%emt 0:00:00]} 13. Kh2 {[%emt 0:00:00]} Nb6 {[%emt 0:00:00]} 14. b3 {[%emt 0:00:00]} Nbd7 {[%emt 0:00:00]} 15. Rad1 {[%emt 0:00:00]} a6 {[%emt 0:00:00]} 16. Qd3 {[%emt 0:00:00]} Qa5 {[%emt 0:00:00]} 17. Nd2 {[%emt 0:00:00]} Qc7 {[%emt 0:00:00]} 18. Nf3 {[%emt 0:00:00]} Qa5 {[%emt 0:00:00]} 19. Nd2 {[%emt 0:00:00]} Qc7 {[%emt 0:00:00]} 20. Nf3 {[%emt 0:00:00]} Qa5 {[%emt 0:08:30]} 1/2-1/2